Cogmind - Beta 16 @@@ ROGUE MODE // 2025.12.02 @ 11:18:18 Player: Scringis Result: Destroyed by BX-EHR(R) with Subdweller Machine Gun Performance ------------- Evolutions (0) 0 Regions Visited (3) 600 Robots Destroyed (25) 125 Value Destroyed (655) 655 Prototype IDs (1) 20 Alien Tech Used (0) 0 Bonus (0) 0 TOTAL SCORE: 1400 Bonus ------- None Cogmind --------- Core Integrity 0/250 Matter 295/300 Energy 280/280 System Corruption 0% Temperature Cool (0) Movement Treading (160) Location -10/Subcaves Parts ------- > --- POWER (1) -------- Heavy Ion Engine > --- PROPULSION (2) --- Light Treads Light Treads > --- UTILITY (2) ------ Heat Sink Large Storage Unit > --- WEAPON (2) ------- Spread Laser Light Assault Rifle > --- INVENTORY (15) --- Heavy Ion Engine Heavy Ion Engine Light Treads Myomer Leg Large Storage Unit Scrap Shield Assault Rifle Bore Cannon Bore Cannon Mining Laser Peak State ------------ > --- POWER ------------ Heavy Ion Engine > --- PROPULSION ------- Light Treads Light Treads > --- UTILITY ---------- Heat Sink Large Storage Unit > --- WEAPON ----------- Spread Laser Light Assault Rifle > --- INVENTORY -------- Heavy Ion Engine Heavy Ion Engine Light Treads Myomer Leg Large Storage Unit Scrap Shield Assault Rifle Bore Cannon Bore Cannon Mining Laser [Rating: 13] Favorites ----------- Power Heavy Ion Engine Engine Heavy Ion Engine Propulsion Light Treads Treads Light Treads Utility Large Storage Unit Device Heat Sink Storage Large Storage Unit Weapon Assault Rifle Energy Gun Spread Laser Ballistic Gun Assault Rifle Special Weapon Mining Laser Build | -11 -10 -10 -10 ------- Run | Yrd Mat Min Sub Slots Evolved . | . . . . Power . | . . . . Propulsion . | . . . . Utility . | . . . . Weapon . | . . . . Parts Attached 15 | 7 6 2 . Power 3 | 1 2 . . Engine 3 | 1 2 . . Core . | . . . . Reactor . | . . . . Propulsion 4 | 2 2 . . Treads 4 | 2 2 . . Leg . | . . . . Wheel . | . . . . Hover . | . . . . Flight . | . . . . Utility 3 | 1 1 1 . Device 1 | . . 1 . Storage 2 | 1 1 . . Processor . | . . . . Hackware . | . . . . Protection . | . . . . Artifact . | . . . . Weapon 5 | 3 1 1 . Energy Gun 1 | . 1 . . Energy Cannon . | . . . . Ballistic Gun 3 | 3 . . . Ballistic Cannon . | . . . . Launcher . | . . . . Special Weapon 1 | . . 1 . Impact Weapon . | . . . . Slashing Weapon . | . . . . Piercing Weapon . | . . . . Special Melee Weapon . | . . . . Unidentified Prototypes 1 | . 1 . . Parts Lost 4 | . 4 . . Power 2 | . 2 . . Propulsion 1 | . 1 . . Utility . | . . . . Weapon 1 | . 1 . . Highest Loss Streak 3 | . 3 . . To Critical Strikes . | . . . . Average Backups 4 | 1 3 5 8 Power 1 | . 1 2 2 Propulsion . | . . . 1 Utility . | . . 1 1 Weapon 1 | . . 2 3 Tool/Special . | . . . . Unused Backups 6 | . . . 6 Power 2 | . . . 2 Propulsion 1 | . . . 1 Utility 2 | . . . 2 Weapon 1 | . . . 1 Tool/Special . | . . . . Average Slot Usage (%) 88 | . 83 92 100 Engine 13 | . 13 14 14 Treads 27 | . 27 28 28 Device 3 | . . 6 14 Storage 14 | . 14 14 14 Energy Gun 6 | . 3 8 13 Ballistic Gun 18 | . 24 14 2 Special Weapon 3 | . . 5 12 Peak Build Rating 13 | 6 9 11 13 Average Rating 8 | 4 6 9 11 On Entrance 6 | . 6 9 10 Avg Prop Armor Cover (%) . | . . . . Naked Turns . | . . . . Heaviest Build 33 | 14 32 33 33 Greatest Support 40 | 40 40 40 40 Greatest Overweight (x) . | . . . . Average Overweight (x) . | . . . . Largest Inventory Capacity 15 | 8 15 15 15 Average Capacity 14 | 7 13 15 15 Most Carried 11 | 3 5 7 11 Average Carried 4 | 1 3 5 9 Final Capacity 15 | 8 15 15 15 Final Carried 11 | 2 5 7 11 Class Distribution -------------------- 100% | Mutant Dominant Class ---------------- Mutant | -10/Materials Mutant | -10/Mines Mutant | -10/Subcaves Resources | -11 -10 -10 -10 ----------- Run | Yrd Mat Min Sub Matter Collected 714 | 236 427 34 17 Remotely . | . . . . Salvage Created 833 | . 730 103 . Parts 42 | . 35 7 . Haulers Intercepted 1 | . 1 . . Recyclers Shooed . | . . . . Parts Field Recycled . | . . . . Retrieved Matter . | . . . . Parts Self-Destructed 1 | . . . 1 Prevented . | . . . . Parts Restored . | . . . . Kills | -11 -10 -10 -10 ------- Run | Yrd Mat Min Sub Combat Hostiles Destroyed 20 | . 16 4 . Guns 20 | . 16 4 . Classes Destroyed 7 | . 7 . . Builder 1 | . 1 . . Tunneler 1 | . 1 . . Hauler 1 | . 1 . . Mechanic 1 | . 1 . . Operator 1 | . 1 . . Swarmer 5 | . 3 2 . Grunt 15 | . 13 2 . Best Kill Streak 4 | . 4 2 . Combat Bots Only 4 | . 4 2 . Max Kills in Single Turn 1 | . 1 1 . Gunslinging . | . . . . Exploded . | . . . . Melee . | . . . . Uniques/NPCs Destroyed . | . . . . Combat | -11 -10 -10 -10 -------- Run | Yrd Mat Min Sub Hostile Shots Fired 149 | . 101 22 26 Missed 51 | . 36 4 11 Hits 98 | . 65 18 15 Projectile 98 | . 65 18 15 AOE 4 | . . . 4 Critical Strikes 2 | . 1 1 . Damage Taken 1225 | . 755 193 277 Core 250 | . 133 24 93 Absorbed by Shields . | . . . . Core Remaining (%) 100 | 100 . . . Volleys Fired 85 | . 67 13 5 Largest 2 | . 2 2 1 Hottest 100 | . 85 100 100 Shots Fired 163 | . 133 25 5 Gun 159 | . 133 24 2 Cannon . | . . . . Launcher . | . . . . Special 4 | . . 1 3 Kinetic 138 | . 124 12 2 Thermal 25 | . 9 13 3 Explosive . | . . . . Electromagnetic . | . . . . Robot Hit Streak 13 | . 7 13 1 Robot Miss Streak 6 | . 5 6 1 Penetration Max . | . . . . Secondary Targets 5 | . 4 1 . Max Gunslinging Chain 1 | . 1 1 . Shots Hit Robots 104 | . 85 18 1 Core Hits 62 | . 43 19 . Critical Kills 2 | . 2 . . Critical Parts Destroyed . | . . . . Critical Strikes 2 | . 2 . . Destroy 2 | . 2 . . Melee Attacks . | . . . . Impact . | . . . . Slashing . | . . . . Piercing . | . . . . Sneak Attacks . | . . . . Combat Hostiles . | . . . . Follow-up Attacks . | . . . . Damage Inflicted 1311 | . 1087 214 10 Guns 1286 | . 1062 214 10 Cannons . | . . . . Explosions . | . . . . Melee . | . . . . Ramming 25 | . 25 . . Kinetic 1031 | . 974 47 10 Thermal 255 | . 88 167 . Explosive . | . . . . Electromagnetic . | . . . . Impact . | . . . . Slashing . | . . . . Piercing . | . . . . Highest Corruption . | . . . . Average Corruption . | . . . . Corruption Purged . | . . . . Corruption Blocked . | . . . . Overload Shots . | . . . . Overflow Damage . | . . . . Projectiles . | . . . . Explosions . | . . . . Melee . | . . . . Knockbacks 1 | . 1 . . Impact 1 | . 1 . . Kinetic . | . . . . Secondary . | . . . . Self-Inflicted Damage . | . . . . Shots . | . . . . Rammed 4 | . 4 . . Targets Rammed 6 | . 6 . . Kicked . | . . . . Crushed 2 | . 2 . . Highest Temperature 245 | . 139 245 . Average Temperature 72 | . 43 102 . Received Heat Transfer 540 | . 390 69 81 Siege Activations . | . . . . Martial Activations . | . . . . Shielding Activations . | . . . . Robots Disrupted . | . . . . Combat Hostiles . | . . . . Robots Corrupted . | . . . . Combat Hostiles . | . . . . Parts Fried . | . . . . Impact Corruptions . | . . . . Robots Melted . | . . . . Combat Hostiles . | . . . . Parts Melted . | . . . . Heat Transferred 320 | . 110 210 . Parts Sabotaged . | . . . . Parts Stolen . | . . . . Parts Stripped . | . . . . Power Chain Reactions . | . . . . Alert | -11 -10 -10 -10 ------- Run | Yrd Mat Min Sub Maximum Alert Level . | . . . . Low Security (%) 100 | 100 100 100 . Level 1 . | . . . . Level 2 . | . . . . Level 3 . | . . . . Level 4 . | . . . . Level 5 . | . . . . High Security . | . . . . Max Security . | . . . . Peak Influence 114 | . 114 50 . Initial 33 | . . 33 . Average 38 | . 57 11 . Influence Increases 654 | . 458 151 45 Destroy 0b10 Robot/C 440 | . 320 120 . Destroy 0b10 Robot/NC 30 | . 25 5 . Destroy Leader 102 | . 82 20 . Successful Hack 37 | . 31 6 . Lose Combat Pursuer 45 | . . . 45 Influence Decreases 619 | . 371 238 10 Entered New Map 54 | . . 54 . Time Decay 493 | . 331 152 10 Lost Part 40 | . 40 . . Lost Ally 32 | . . 32 . Squads Dispatched 5 | . 5 . . Investigation 5 | . 5 . . Extermination . | . . . . Reinforcement . | . . . . Assault . | . . . . Garrison . | . . . . Intercept . | . . . . Searches Triggered . | . . . . Construction Impeded . | . . . . Haulers Reinforced . | . . . . Active Scanning Responses . | . . . . Cargo Convoy Interrupts . | . . . . Stealth | -11 -10 -10 -10 --------- Run | Yrd Mat Min Sub Distress Signals 1 | . 1 . . Communications Jammed . | . . . . Distress Signals . | . . . . Times Spotted 42 | . 26 5 11 Peak Tracking Total 6 | . 4 3 6 Tactical Retreats 1 | . . . 1 Traps | -11 -10 -10 -10 ------- Run | Yrd Mat Min Sub Traps Triggered 5 | . 5 . . Indirectly . | . . . . Trap Hack Attempts . | . . . . Triggered . | . . . . Disarmed . | . . . . Reprogrammed . | . . . . Reused . | . . . . Traps Extracted . | . . . . Installed . | . . . . Triggered . | . . . . Machines | -11 -10 -10 -10 ---------- Run | Yrd Mat Min Sub Machines Disabled . | . . . . Max in Single Turn . | . . . . Machines Repaired . | . . . . Machines Dismantled . | . . . . Machines Sabotaged . | . . . . Overloaded Fab Kills . | . . . . Hacking | -11 -10 -10 -10 --------- Run | Yrd Mat Min Sub Machines Accessed 6 | . 5 1 . Terminals 6 | . 5 1 . Fabricators . | . . . . Repair Stations . | . . . . Recycling Units . | . . . . Scanalyzers . | . . . . Garrison Access . | . . . . Total Hacks 17 | . 16 1 . Successful 9 | . 8 1 . Failed 8 | . 8 . . Catastrophic . | . . . . Database Lockouts . | . . . . Manual 17 | . 16 1 . Terminals 17 | . 16 1 . Fabricators . | . . . . Repair Stations . | . . . . Recycling Units . | . . . . Scanalyzers . | . . . . Garrison Access . | . . . . Terminal Hacks 4 | . 3 1 . Robot Analysis 3 | . 2 1 . Terminal Index 1 | . 1 . . Fabricator Hacks . | . . . . Repair Station Hacks . | . . . . Recycling Unit Hacks . | . . . . Scanalyzer . | . . . . Garrison Access Hacks . | . . . . Unauthorized Hacks 5 | . 5 . . Terminals 5 | . 5 . . Botnet 4 | . 4 . . Sabotage 1 | . 1 . . Fabricators . | . . . . Repair Stations . | . . . . Recycling Units . | . . . . Scanalyzers . | . . . . Garrison Access . | . . . . Data Cores Recovered 1 | . 1 . . Used . | . . . . Hacking Detections 5 | . 4 1 . Full Trace Events . | . . . . Feedback Events . | . . . . Feedback Blocked . | . . . . Robot Schematics Acquired . | . . . . Robots Built . | . . . . Authchips . | . . . . Time . | . . . . Total Robot Build Rating . | . . . . Part Schematics Acquired . | . . . . Parts Built . | . . . . Authchips . | . . . . Time . | . . . . Total Part Build Rating . | . . . . Part Studies Acquired . | . . . . Parts Repaired . | . . . . Time . | . . . . Parts Recycled . | . . . . Recycled Matter . | . . . . Retrieved Matter . | . . . . Retrieved Components . | . . . . Parts Scanalyzed . | . . . . Part Schematics Acquired . | . . . . Parts Damaged . | . . . . Bothacking | -11 -10 -10 -10 ------------ Run | Yrd Mat Min Sub Used RIF Installer . | . . . . Robots Hacked . | . . . . Non-combat . | . . . . Combat . | . . . . Robot Hacks Applied . | . . . . Relay Couplers Released . | . . . . Fabnet Peak Effective % . | . . . . Robots Rewired . | . . . . Allies Hacked . | . . . . Hacks Repelled . | . . . . Allies | -11 -10 -10 -10 -------- Run | Yrd Mat Min Sub Total Allies 3 | . . 3 . Largest Group 3 | . . 3 . Highest-Rated Group 40 | . . 40 . Highest-Rated Ally 16 | . . 16 . Total Orders . | . . . . Ally Attacks 15 | . . 15 . Total Damage 157 | . . 157 . Kills 2 | . . 2 . Allies Corrupted . | . . . . Allies Melted . | . . . . Intel | -11 -10 -10 -10 ------- Run | Yrd Mat Min Sub Active Infowar (turns) . | . . . . Robot Analysis Total 3 | . 2 1 . Derelict Logs Recovered 1 | . . 1 . Drone Launches . | . . . . Drone Recoveries . | . . . . Exploration | -11 -10 -10 -10 ------------- Run | Yrd Mat Min Sub Turns Passed 1931 | 83 1016 649 183 Spaces Moved 950 | 49 441 365 95 Core 9 | 9 . . . Treads 941 | 40 441 365 95 Legs . | . . . . Wheels . | . . . . Hover . | . . . . Flight . | . . . . Fastest Speed 50 | 50 160 160 160 Average Speed 158 | 139 160 160 160 Slowest Speed 160 | 160 160 160 160 Overloaded Moves . | . . . . Propulsion Burnouts . | . . . . Robots Hopped . | . . . . Potential Cave-ins . | . . . . Cave-ins Triggered . | . . . . Exploration Rate (%) 44 | 5 69 94 9 Regions Visited 3 Branch Regions 2 Pre-discovered Areas 1 | . . 1 . Known Exits Taken . | . . . . Unknown Exits Taken 3 | 1 1 1 . Scrap Searched 1 | . . 1 . Spaces Dug . | . . . . Terrain Destroyed . | . . . . Melee . | . . . . Projectile . | . . . . AOE . | . . . . Terrain Rammed . | . . . . Walls Destroyed . | . . . . Machines Disabled . | . . . . Actions | -11 -10 -10 -10 --------- Run | Yrd Mat Min Sub Total 1200 | 63 617 405 115 Wait 115 | . 83 23 9 Move 947 | 48 440 364 95 Hop . | . . . . Pick Up 24 | 8 10 3 3 Fast Attach . | . . . . Attach 12 | 6 4 1 1 Detach 1 | . . . 1 Swap 7 | 1 4 1 1 Drop 3 | . 3 . . Fire 85 | . 67 13 5 Melee . | . . . . Ram . | . . . . Kick . | . . . . Crush 6 | . 6 . . Escape Stasis . | . . . . Rewire . | . . . . Trap . | . . . . Miscellaneous . | . . . . Route ------- -11/Scrapyard -10/Materials (discovered 2 exits: [*Mat] / *Min) -10/Mines (discovered 4 exits: [*Mat x2] / [*Exi] / [*Sub]) -10/Subcaves (discovered 1 exit: [*Rec]) History --------- Turn | Location | Event 26 | -11/Scrapyard | Discovered new exit (range 15) 84 | -11/Scrapyard | Entered Materials 314 | -10/Materials | Build established: Mutant 327 | -10/Materials | Discovered new exit (range 8) 792 | -10/Materials | Core integrity fell below 50% 817 | -10/Materials | Lost 3 parts (1p1n1w) 879 | -10/Materials | Discovered new exit (range 12) 1100 | -10/Materials | Entered Mines 1125 | -10/Mines | Learned location of Storage (-9) 1208 | -10/Mines | Learned location of 1 exit from Materials 1253 | -10/Mines | Deemed a non-threat by the Exiles lab entrance 1255 | -10/Mines | Discovered new exit (range 5) 1368 | -10/Mines | Discovered new exit (range 10) 1420 | -10/Mines | Assisted by bots powering up and referring to "LRC-V3" 1501 | -10/Mines | Excavation squad dispatched 1501 | -10/Mines | A large section of the Mines collapsed 1646 | -10/Mines | A weapon hastily lodged in a ceiling crevice suddenly fell to the ground 1691 | -10/Mines | Discovered new exit (range 9) 1701 | -10/Mines | Discovered new exit (range 13) 1749 | -10/Mines | Entered Subcaves 1750 | -10/Subcaves | Approached by a straggling Scientist 1912 | -10/Subcaves | Discovered new exit (range 12) 1922 | -10/Subcaves | Ambushed by Subdweller buried in earth 1924 | -10/Subcaves | Core integrity fell below 20% 1932 | -10/Subcaves | Destroyed by BX-EHR(R) with Subdweller Machine Gun Last Messages --------------- S6-3RQ(c): "I think it's somewhere southeast of here" 01851_ I5-W53(u) builds Twisted Machinery. S6-3RQ(c): "I think it's somewhere south of here" 01912_ EXIT=FOUND 01914_ S-10 Pest destroyed. 01922_ HV Slug penetrates Autobeam Turret. 01922_ LF-YRA(h) destroyed. [Achievement: Do Not Disturb] 01923_ 8S-F4W(R): "THANKSYOU!" 01925_ Machine disabled. 01925_ Acquired Myomer Leg. 01927_ 8S-F4W(R) critical meltdown. 01928_ Acquired Bore Cannon. 01928_ S6-3RQ(c) destroyed. 01930_ Lgt. Assault Rifle fries itself beyond repair. 01930_ Acquired 7 matter. 01932_ Machine disabled. Map ----- +----------------------------------------------------+ | #####???????????###???####??????????????????????? | | #??????????????????????????????????????????????? | | ###??????????????????????????????????????????????? | | #????????????????????????????????????????????????? | | #????????????????????????????????????????????????? | | ?????????????????????????????????????????????????? | | ?????????????????????????????????????????????????? | | %#???????????????????????????????????????????????? | | #??????????????????????????????????????????????? | | ###??????????????????????????????????????????????? | | ?????????????????????????????????????????????????? | | ?????????????????????????????????????????????????? | | ?????????????????????????????????????????????????? | | #????????????????????????????????????????????????? | | #?????####????????????#####????####??????????????? | | #????## ####????????## ##?##"""##"????????????? | | #????# " ###??????# ## " ???????????? | | #????# "" ######## #;; R ???????????? | | #####?# " ""##;;;# ; "???????????? | | ## "##?#"" "" #; ; ""???????????? | | %" ###" " " ??????????? | | " % "" [ ?????????? | | #######; ;; %* ;; "?????????? | | ###########?????##";;; % R ;#??????????????? | | ?????????????????##### ;#??????????????? | | ?????????????????????# &@% #??????????????? | | ?????????????????????## & * #; #?????????????? | | ?????????????????????#" ;##"#?????????????? | | ?????????????????????# ;#??#?????????????? | | ?????????????????????# ##????????????????? | | ?????????????????????# t t ;#????????????????? | | ?????????????????????#" ;#????????????????? | | ?????????????????????# ;#????????????????? | | ?????????????????????##;;;<;;;;;#????????????????? | | ??????????????????????####;######????????????????? | | ??????????????????????????##?????????????????????? | | ?????????????????????????????????????????????????? | | ?????????????????????????????????????????????????? | | ?????????????????????????????????????????????????? | | ?????????????????????????????????????????????????? | | ?????????????????????????????????????????????????? | | ?????????????????????????????????????????????????? | | ?????????????????????????????????????????????????? | | ?????????????????????????????????????????????????? | | ?????????????????????????????????????????????????? | | ?????????????????????????????????????????????????? | | ?????????????????????????????????????????????????? | | ?????????????????????????????????????????????????? | | ?????????????????????????????????????????????????? | | ?????????????????????????????????????????????????? | +----------------------------------------------------+ Best States ------------- Heat Dissipation 35 Energy Generation 14 Energy Capacity 280 Matter Stores 300 Matter Capacity 300 Sight Range 16 Terrain Scan Density 10 Evasion (%) 40 Recoil Reduction 2 Item Schematics ----------------- None Robot Schematics ------------------ None Fabricated ------------ Nothing Repaired ---------- Nothing Studied --------- None Alien Tech Used ----------------- None Achievements -------------- Brute Force Do Not Disturb Challenges ------------ None Game ------ Seed SuperdenseWarlordBank Manual? 0 Play Time 00:10:00 Cumulative 67.2 hours Start 2025.12.02 @ 11:09:40 End 2025.12.02 @ 11:18:18 Sessions 1 Manual Loads 0 Difficulty Rogue Special Mode None Game No. 168 Rogue 168 Adventurer 0 Explorer 0 Win Type - Total 0 Types 0/0/0/0/0/0/0/0/0/0 Lore% 33 Gallery% 36 Achievement% 29 Wizard Run 0 Options --------- Layout 1 ASCII 0 Keyboard 0 Movement Numpad Keybinds 0 Fullscreen 2 Font 24/Smallcaps Map View 50x35 Zoom Use 0% Tactical HUD 1 Map Filters NONE Filters NONE Steam 1 RUN: 24b837f9-f3f2-4a70-9838-0acc517c9b2a